bitfinex/quotes_SOLUSD_20240625
["timestamp","ask_amount","ask_price","bid_price","bid_amount"]
[1719344642549,6.97,138.89,138.88,0.8537016]
[1719344642727,6.97,138.9,138.88,0.8537016]
[1719344643339,7.0678179,138.92,138.88,0.8537016]
[1719344643540,6.97,138.89,138.88,0.8537016]
[1719344646349,7.0678179,138.92,138.88,0.8537016]
[1719344646551,20.0,138.91,138.88,0.8537016]
[1719344646758,6.97,138.9,138.88,0.8537016]
[1719344646959,7.0678179,138.92,138.88,17.0195016]
[1719344647244,6.97,138.94,138.89,6.97]
[1719344647427,6.97,138.94,138.88,23.9895016]
[1719344648037,7.12760912,138.96,138.89,6.97]
[1719344648243,6.97,138.95,138.89,6.97]
[1719344648844,6.97,138.94,138.88,23.9895016]
[1719344649735,6.97,138.93,138.88,23.9895016]
[1719344651327,6.97,138.93,138.88,17.0195016]
[1719344651530,6.97,138.92,138.88,17.0195016]
[1719344651833,6.97,138.91,138.88,0.8537016]
[1719344653637,14.0378179,138.95,138.88,0.8537016]
[1719344653841,6.97,138.92,138.88,0.8537016]
[1719344658850,6.97,138.91,138.88,0.8537016]
[1719344659435,7.1979,138.93,138.88,0.8537016]
[1719344659436,6.97,138.9,138.88,0.8537016]
[1719344659955,7.1979,138.93,138.88,0.8537016]
[1719344659956,6.97,138.91,138.88,0.8537016]
[1719344660256,6.97,138.9,138.88,0.8537016]
[1719344660630,6.97,138.91,138.88,0.8537016]
[1719344660833,20.0,138.94,138.88,0.8537016]
[1719344661037,7.0678179,138.95,138.88,7.8237016]
[1719344661255,6.97,138.94,138.89,6.97]
[1719344661469,14.0378179,138.95,138.89,23.2903]
[1719344663662,14.0378179,138.95,138.9,6.97]
[1719344663838,14.0378179,138.95,138.89,23.2903]
[1719344665845,7.0678179,138.95,138.89,23.2903]
[1719344666046,14.0378179,138.95,138.89,23.2903]
[1719344667043,7.0678179,138.95,138.89,23.2903]
[1719344667243,14.0378179,138.95,138.89,23.2903]
[1719344670268,14.0378179,138.95,138.89,16.3203]
[1719344670471,6.97,138.93,138.88,0.8537016]
[1719344671171,14.2648179,138.95,138.88,0.8537016]
[1719344671373,6.97,138.93,138.88,0.8537016]
[1719344671668,6.97,138.93,138.88,7.8237016]
[1719344672878,14.2646179,138.95,138.88,7.8237016]
[1719344673046,6.97,138.93,138.88,7.8237016]
[1719344675273,6.97,138.94,138.88,7.8237016]
[1719344675447,7.0678179,138.95,138.88,7.8237016]
[1719344675768,6.97,138.94,138.88,7.8237016]
[1719344675965,7.0678179,138.95,138.91,6.97]
[1719344676165,16.1605,138.99,138.92,6.97]
[1719344676471,26.97,138.98,138.93,6.97]
[1719344677248,26.97,138.98,138.92,6.97]
[1719344679052,20.0,138.98,138.93,6.97]
[1719344679256,20.0,138.99,138.93,6.97]
[1719344679484,26.97,138.99,138.93,6.97]
[1719344680065,6.97,138.98,138.93,6.97]
[1719344681487,26.97,138.99,138.94,6.97]
[1719344682158,27.0678179,138.99,138.91,16.5164]
[1719344682365,6.97,138.98,138.92,6.97]
[1719344683261,6.97,138.98,138.92,7.52941716]
[1719344683467,6.97,138.97,138.91,23.4864]
[1719344683848,27.0678179,138.99,138.92,7.53040812]
[1719344684166,6.97,138.98,138.93,6.97]
[1719344684367,34.0378179,138.99,138.93,6.97]
[1719344684568,6.97,138.98,138.92,7.53040812]
[1719344684873,27.0678179,138.99,138.92,0.56040812]
[1719344685061,27.0678179,138.99,138.93,6.97]
[1719344685262,34.0378179,138.99,138.93,6.97]
[1719344685754,7.12760912,139.0,138.96,6.97]
[1719344685956,7.48623416,139.03,138.97,0.58875849]
[1719344686281,6.97,139.03,138.98,6.97]
[1719344686572,20.42222702,139.04,138.96,15.5864]
[1719344686573,14.19542702,139.04,138.99,7.55881313]
[1719344686750,14.19542702,139.04,138.99,6.97]
[1719344687366,21.16542702,139.04,138.98,6.97]
[1719344688358,21.16542702,139.04,138.97,0.58881313]
[1719344688558,6.97,139.02,138.97,6.97]
[1719344689059,6.97,139.02,138.96,22.5564]
[1719344689466,6.97,139.01,138.96,22.5564]
[1719344689679,6.97,139.02,138.96,22.5564]
[1719344691672,6.97,139.02,138.96,15.5864]
[1719344691857,6.97,139.02,138.96,22.5564]
[1719344692572,6.97,139.02,138.96,15.5864]
[1719344692776,6.97,139.02,138.96,22.5564]
[1719344694079,6.97,139.01,138.96,22.5564]
[1719344694284,6.97,138.99,138.96,15.5864]
[1719344695281,6.97,139.0,138.96,15.5864]
[1719344695779,6.97,138.99,138.94,6.97]
[1719344696162,6.97,139.0,138.94,23.0245]
[1719344696387,6.97,139.0,138.95,6.97]
[1719344696581,21.38772702,139.04,138.96,6.97]
[1719344696582,6.97,139.02,138.96,6.97]
[1719344696888,6.97,139.02,138.97,6.97]
[1719344697076,14.19542702,139.04,138.97,6.97]
[1719344697463,6.97,139.03,138.98,6.97]
[1719344697863,7.0678179,139.04,138.99,6.97]
[1719344698062,7.0678179,139.04,138.99,23.0245]
[1719344698463,14.0378179,139.04,138.99,23.0245]
[1719344700080,14.0378179,139.04,138.99,16.0545]
[1719344700273,7.0678179,139.04,138.99,16.0545]
[1719344700475,7.0678179,139.04,138.94,0.17]
[1719344700476,7.0678179,139.04,138.95,16.2367]
[1719344700785,6.97,139.04,138.99,6.97]
[1719344700983,7.49451815,139.06,138.99,6.97]
[1719344701286,7.0678179,139.07,139.02,6.97]
[1719344701585,30.50070912,139.11,139.03,8.40673817]
[1719344701766,6.97,139.08,139.03,6.97]
[1719344702182,6.97,139.05,139.0,15.3821]
[1719344702386,6.97,139.03,138.92,15.9287]
[1719344702573,6.97,139.03,138.91,25.0]
[1719344702574,6.97,139.03,138.98,22.2898]
[1719344702888,6.97,139.02,138.98,15.3198]
[1719344703267,6.97,139.01,138.96,6.97]
[1719344703467,6.97,139.01,138.95,15.3198]
[1719344703673,6.97,139.01,138.96,6.97]
[1719344703867,6.97,139.01,138.95,22.2898]
[1719344704465,6.97,139.0,138.95,15.3198]
[1719344704664,7.1922,139.04,138.96,6.97]
[1719344704889,7.1922,139.04,138.95,15.3198]
[1719344705464,14.2600179,139.04,138.95,15.3198]
[1719344705790,7.1928,139.03,138.95,15.3198]
[1719344705969,7.1936,139.02,138.95,15.3198]
[1719344708191,14.2605179,139.03,138.95,15.3198]
[1719344708368,20.0,139.02,138.95,15.3198]
[1719344709387,27.1932,139.02,138.95,15.3198]
[1719344709695,34.2610179,139.02,138.95,15.3198]
[1719344710974,27.0678179,139.02,138.95,15.3198]
[1719344711684,7.0678179,139.02,138.95,15.3198]
[1719344712791,14.2610179,139.02,138.95,15.3198]
[1719344712988,7.1938,139.01,138.95,15.3198]
[1719344713200,7.0678179,139.02,138.95,15.3198]
[1719344713378,7.1951,138.99,138.91,16.2714]
[1719344713990,36.3587,139.0,138.91,16.2714]
[1719344714181,7.1958,138.97,138.91,16.2714]
[1719344715180,14.2632179,138.98,138.91,16.2714]
[1719344715381,20.0,138.97,138.91,16.2714]
[1719344716192,7.0678179,138.98,138.91,16.2714]
[1719344716490,7.12760912,138.99,138.91,16.2714]
[1719344717499,14.32230912,138.99,138.91,16.2714]
[1719344719889,21.39012702,138.99,138.91,16.2714]
[1719344720197,14.19542702,138.99,138.91,16.2714]
[1719344721894,7.0678179,138.98,138.91,16.2714]
[1719344724325,7.12760912,138.99,138.91,16.2714]
[1719344725190,14.32240912,138.99,138.91,16.2714]
[1719344726482,7.12760912,138.99,138.91,16.2714]
[1719344727890,14.32240912,138.99,138.91,16.2714]
[1719344728803,21.39022702,138.99,138.91,16.2714]
[1719344729612,7.1952,138.98,138.91,16.2714]
[1719344730024,7.1958,138.97,138.91,16.2714]
[1719344730309,7.1963,138.96,138.91,16.2714]
[1719344730489,7.0678179,138.96,138.88,0.8537016]
[1719344730808,7.1974,138.94,138.88,0.8537016]
[1719344731198,27.198,138.93,138.88,0.8537016]
[1719344731581,27.0678179,138.93,138.88,0.8537016]
[1719344731986,7.1987,138.92,138.88,0.8537016]
[1719344732205,27.0678179,138.93,138.88,0.8537016]
[1719344732793,34.2660179,138.93,138.88,0.8537016]
[1719344733112,7.1985,138.92,138.88,0.8537016]
[1719344734507,30.0,138.9,138.88,0.8537016]
[1719344735501,37.1994,138.9,138.88,0.8537016]
[1719344736422,30.0,138.9,138.88,0.8537016]
[1719344737585,37.1994,138.9,138.88,0.8537016]
[1719344737990,30.0,138.9,138.88,0.8537016]
[1719344743800,7.1999,138.89,138.88,0.8537016]
[1719344743997,7.2014,138.87,138.79,15.5331]
[1719344744216,7.0678179,138.88,138.79,15.5331]
[1719344744422,7.2025,138.84,138.79,15.5331]
[1719344745043,30.0,138.82,138.79,15.5331]
[1719344749806,7.2016,138.86,138.79,15.5331]
[1719344750206,34.2688179,138.87,138.79,15.5331]
[1719344750408,7.2015,138.86,138.79,15.5331]
[1719344751231,34.2688179,138.87,138.79,15.5331]
[1719344752428,7.2015,138.86,138.79,15.5331]
[1719344752724,7.2023,138.85,138.79,15.5331]
[1719344754130,14.2694179,138.86,138.79,15.5331]
[1719344755753,7.0678179,138.86,138.79,15.5331]
[1719344756445,7.12760912,138.88,138.79,15.5331]
[1719344756645,6.98,138.86,138.81,6.98]
[1719344757218,14.10760912,138.88,138.82,6.98]
[1719344757746,14.10760912,138.88,138.79,15.5331]
[1719344757933,6.98,138.87,138.82,6.98]
[1719344758439,6.98,138.87,138.8,0.34]
[1719344758745,7.12760912,138.88,138.8,0.34]
[1719344758944,7.0678179,138.9,138.79,15.5331]
[1719344758945,25.0667179,138.9,138.79,15.5331]
[1719344759121,7.2026,138.84,138.79,15.5331]
[1719344759319,7.203,138.83,138.79,15.5331]
[1719344759522,7.2035,138.82,138.75,15.8185]
[1719344759747,7.2042,138.81,138.75,15.8185]
[1719344760233,7.2041,138.81,138.75,15.8185]
[1719344760458,28.0178179,138.83,138.75,15.8185]
[1719344760627,7.0678179,138.81,138.74,0.8537016]
[1719344760844,27.2046,138.8,138.74,0.8537016]
[1719344761338,7.2051,138.79,138.74,0.8537016]
[1719344762735,7.2067,138.76,138.74,0.8537016]
[1719344762942,14.2730179,138.79,138.74,0.8537016]
[1719344763150,20.0,138.78,138.74,0.8537016]
[1719344763445,7.2067,138.76,138.74,0.8537016]
[1719344764042,7.0678179,138.77,138.74,0.8537016]
[1719344764230,7.2067,138.76,138.74,0.8537016]
[1719344764750,7.2072,138.75,138.74,0.8537016]
[1719344764931,27.2072,138.75,138.74,0.8537016]
[1719344765447,34.2750179,138.75,138.74,0.8537016]
[1719344766244,40.4805179,138.75,138.74,0.8537016]
[1719344766634,33.2733179,138.75,138.74,0.8537016]
[1719344766834,40.4805179,138.75,138.74,0.8537016]
[1719344767142,47.60812702,138.75,138.65,15.1224]
[1719344767350,48.0178179,138.74,138.65,15.1224]
[1719344767647,7.2086,138.73,138.65,15.1224]
[1719344767849,14.2764179,138.73,138.65,15.1224]
[1719344768050,7.2096,138.71,138.65,15.1224]
[1719344768348,7.2096,138.71,138.62,16.1099]
[1719344768728,7.0678179,138.71,138.62,16.1099]
[1719344768931,7.2103,138.69,138.62,16.1099]
[1719344769131,7.0678179,138.71,138.62,16.1099]
[1719344769331,20.0,138.7,138.62,16.1099]
[1719344769538,7.2108,138.69,138.62,16.1099]
[1719344769737,27.0678179,138.7,138.62,16.1099]
[1719344769944,34.2778179,138.7,138.62,16.1099]
[1719344770326,27.0678179,138.7,138.62,16.1099]
[1719344770730,34.2776179,138.7,138.62,16.1099]
[1719344772548,7.2103,138.69,138.62,16.1099]
[1719344772734,7.2103,138.69,138.61,0.8537016]
[1719344772735,13.4618,138.68,138.61,0.8537016]
[1719344773135,6.2506,138.68,138.61,0.8537016]
[1719344773538,14.2781179,138.69,138.61,0.8537016]
[1719344773852,15.118,138.77,138.65,20.95]
[1719344774040,34.4057,138.79,138.67,15.9989]
[1719344774041,6.2506,138.79,138.67,15.9989]
[1719344774236,6.2506,138.79,138.68,0.34]
[1719344774437,6.2506,138.79,138.68,20.34]
[1719344774631,7.2047,138.8,138.68,20.34]
[1719344775031,14.33230912,138.8,138.68,20.34]
[1719344776433,14.33230912,138.8,138.68,41.29]
[1719344776832,7.12760912,138.8,138.68,41.29]
[1719344777538,14.33220912,138.8,138.68,41.29]
[1719344777952,7.2052,138.79,138.68,41.29]
[1719344779029,7.12760912,138.8,138.68,41.29]
[1719344779030,14.33230912,138.8,138.68,41.29]
[1719344780856,7.2051,138.79,138.68,41.29]
[1719344781765,7.2058,138.78,138.68,41.29]
[1719344782534,7.2058,138.78,138.68,20.34]
[1719344782749,7.2058,138.78,138.68,0.34]
[1719344782974,7.2062,138.77,138.67,15.9989]
[1719344783156,7.2073,138.75,138.67,15.9989]
[1719344783663,7.2068,138.76,138.67,15.9989]
[1719344786038,28.07760912,138.76,138.67,15.9989]
[1719344786245,7.208,138.74,138.67,15.9989]
[1719344786444,6.67464012,138.76,138.67,15.9989]
[1719344786657,7.2051,138.79,138.67,15.9989]
[1719344786963,14.11516641,138.8,138.67,15.9989]
[1719344787164,6.3871,138.85,138.7,16.206]
[1719344787362,6.3871,138.85,138.72,20.95]
[1719344787566,6.3871,138.85,138.73,0.34]
[1719344787865,13.80224924,138.86,138.73,20.34]
[1719344788239,13.80224924,138.86,138.75,20.95]
[1719344788441,13.80224924,138.86,138.76,0.34]
[1719344788864,6.67464012,138.86,138.77,15.2964]
[1719344789064,6.67464012,138.86,138.78,0.34]
[1719344789248,13.51470912,138.89,138.78,0.34]
[1719344789451,7.12760912,138.89,138.78,0.34]
[1719344790348,14.32760912,138.89,138.78,0.34]
[1719344791268,7.2005,138.88,138.78,0.34]
[1719344794642,7.201,138.87,138.78,0.34]
[1719344796380,7.2004,138.88,138.78,0.34]
[1719344796549,7.12760912,138.89,138.78,0.34]
[1719344796872,7.44551927,138.92,138.79,15.8318]
[1719344797053,7.1974,138.94,138.8,20.34]
[1719344797450,21.24811325,138.96,138.8,20.34]
[1719344797775,7.1989,138.92,138.81,0.65265684]
[1719344798015,13.80224924,138.94,138.82,0.34]
[1719344798181,7.1989,138.92,138.82,0.34]
[1719344798348,7.1978,138.93,138.83,0.65251749]
[1719344798546,7.44586401,138.96,138.84,0.34]
[1719344798750,7.1984,138.92,138.84,0.34]
[1719344799573,20.0,138.95,138.83,0.65251749]
[1719344799777,7.1995,138.9,138.82,0.34]
[1719344800072,7.1985,138.92,138.82,0.34]
[1719344800488,7.1984,138.92,138.82,0.34]
[1719344800890,7.1978,138.93,138.82,0.34]
[1719344801185,7.1978,138.93,138.82,0.99612623]
[1719344801881,20.0,138.92,138.82,0.99612623]
[1719344802282,27.1983,138.92,138.82,0.99612623]
[1719344802765,20.0,138.92,138.82,0.99612623]
[1719344803587,27.1983,138.92,138.82,0.99612623]
[1719344804877,7.1995,138.9,138.82,0.99612623]
[1719344805192,7.199,138.91,138.82,0.82612623]
[1719344806067,7.1994,138.9,138.82,0.82612623]
[1719344806482,7.1994,138.9,138.83,0.17]
[1719344806878,7.1989,138.91,138.83,0.17]
[1719344807489,27.1985,138.92,138.83,0.17]
[1719344807870,7.1989,138.91,138.83,0.17]
[1719344809790,7.1989,138.91,138.83,0.8400945]
[1719344809978,7.1989,138.91,138.84,0.17]
[1719344810183,7.1996,138.9,138.83,0.8400945]
[1719344811077,7.1996,138.9,138.83,0.17]
[1719344812708,58.9368,138.92,138.82,0.67460352]
[1719344812868,7.1997,138.9,138.8,0.67460352]
[1719344813378,7.2,138.89,138.8,0.67460352]
[1719344813583,7.2004,138.88,138.8,0.67460352]
[1719344814269,7.2001,138.89,138.81,0.17]
[1719344814871,7.1996,138.9,138.81,0.17]
[1719344815086,7.199,138.91,138.81,0.17]
[1719344815278,20.0,138.92,138.81,0.34]
[1719344815695,7.1989,138.91,138.81,0.34]
[1719344816570,7.1996,138.9,138.81,0.34]
[1719344820308,7.2,138.89,138.81,0.34]
[1719344820498,7.2,138.89,138.81,0.17]
[1719344822015,7.2005,138.88,138.81,0.17]
[1719344822199,7.2018,138.86,138.79,15.8318]
[1719344822509,6.26658457,138.9,138.79,15.8318]
[1719344822705,7.2011,138.87,138.79,15.8318]
[1719344822897,27.2016,138.86,138.79,15.8318]
[1719344823300,7.202,138.85,138.79,15.8318]
[1719344824111,27.2016,138.86,138.79,15.8318]
[1719344824489,20.0,138.86,138.79,15.8318]
[1719344824815,7.2016,138.86,138.79,15.8318]
[1719344824999,20.0,138.85,138.79,15.8318]
[1719344825812,24.68910912,138.92,138.8,0.17]
[1719344826110,20.0,138.89,138.8,0.34]
[1719344826598,7.1995,138.9,138.8,20.34]
[1719344826918,6.69210912,138.92,138.8,20.34]
[1719344827123,7.1995,138.9,138.8,20.34]
[1719344828197,7.1991,138.91,138.8,20.34]
[1719344829109,7.1995,138.9,138.8,20.34]
[1719344830000,7.2,138.89,138.8,20.34]
[1719344830200,7.2,138.89,138.8,0.34]
[1719344830517,7.2005,138.88,138.8,0.34]
[1719344830818,7.201,138.87,138.8,0.34]
[1719344831001,7.201,138.87,138.79,15.8318]
[1719344831205,7.2016,138.86,138.79,15.8318]
[1719344831807,7.2011,138.87,138.79,15.8318]
[1719344832010,7.2005,138.88,138.79,15.8318]
[1719344832216,20.0,138.87,138.79,15.8318]
[1719344832397,27.201,138.87,138.79,15.8318]
[1719344832718,20.0,138.87,138.79,15.8318]
[1719344834301,27.201,138.87,138.79,15.8318]
[1719344834803,18.0042,138.86,138.79,15.8318]
[1719344835009,27.2024,138.85,138.79,15.8318]
[1719344835210,7.2024,138.85,138.79,15.8318]
[1719344836116,7.2026,138.84,138.79,15.8318]
[1719344837701,7.2019,138.86,138.79,15.8318]
[1719344837900,20.0,138.85,138.79,15.8318]
[1719344838525,27.202,138.85,138.79,15.8318]
[1719344839016,20.0,138.85,138.79,15.8318]
[1719344839215,7.2037,138.82,138.79,15.8318]
[1719344839523,7.2037,138.82,138.74,15.0432]
[1719344840123,7.2032,138.83,138.74,15.0432]
[1719344840433,20.0,138.82,138.74,15.0432]
[1719344842422,7.2018,138.86,138.75,0.17]
[1719344842628,20.0,138.85,138.75,0.34]
[1719344842929,27.2022,138.85,138.75,0.34]
[1719344845627,20.0,138.85,138.76,15.9287]
[1719344846412,13.89320912,138.87,138.76,15.9287]
[1719344846613,13.89320912,138.87,138.78,16.3555]
[1719344846926,27.2015,138.86,138.78,16.3555]
[1719344847906,27.2015,138.86,138.78,15.3555]
[1719344848131,20.0,138.86,138.78,15.3555]
[1719344848623,44.27058457,138.86,138.78,15.3555]
[1719344848936,7.2036,138.82,138.78,15.3555]
[1719344849139,27.20658457,138.85,138.78,15.3555]
[1719344849140,7.2032,138.83,138.78,15.3555]
[1719344849305,7.2027,138.84,138.78,15.3555]
[1719344849504,20.0,138.83,138.78,15.3555]
[1719344850230,27.203,138.83,138.78,15.3555]
[1719344852230,20.0,138.83,138.78,15.3555]
[1719344852929,27.2031,138.83,138.78,15.3555]
[1719344855348,20.0,138.83,138.78,15.3555]
[1719344856452,7.2046,138.8,138.74,16.0941]
[1719344856953,20.0,138.79,138.74,16.0941]
[1719344858079,7.2047,138.8,138.74,16.0941]
[1719344858217,20.0,138.79,138.74,16.0941]
[1719344861023,27.2051,138.79,138.74,16.0941]
[1719344861350,20.0,138.79,138.74,16.0941]
[1719344861562,11.25811741,138.83,138.74,16.0941]
[1719344861883,6.1081,138.88,138.75,0.17]
[1719344861884,12.95869369,138.87,138.75,0.17]
[1719344862032,7.2018,138.86,138.75,0.34]
[1719344862236,7.2021,138.85,138.75,0.34]
[1719344862460,7.202,138.85,138.75,0.34]
[1719344863243,20.0,138.84,138.75,0.34]
[1719344865244,27.2028,138.84,138.75,0.34]
[1719344865757,20.0,138.84,138.75,0.34]
[1719344866554,27.2026,138.84,138.75,0.34]
[1719344867267,20.0,138.84,138.76,16.2734]
[1719344867435,6.69210912,138.86,138.77,0.34]
[1719344867841,13.89360912,138.86,138.77,0.34]
[1719344868059,6.69210912,138.86,138.77,0.34]
[1719344868437,7.2021,138.85,138.77,0.34]
[1719344868945,13.89370912,138.86,138.77,0.34]
[1719344869147,7.2026,138.84,138.77,0.34]
[1719344869858,7.2022,138.85,138.77,0.34]
[1719344870265,7.2026,138.84,138.77,0.17]
[1719344870450,7.2034,138.83,138.76,16.2734]
[1719344871055,6.69210912,138.86,138.76,16.2734]
[1719344871350,20.0,138.85,138.76,16.2734]
[1719344871837,7.2025,138.84,138.76,16.2734]
[1719344874035,27.2021,138.85,138.76,16.2734]
[1719344874538,20.0,138.85,138.76,16.2734]
[1719344874740,6.69210912,138.86,138.77,0.34]
[1719344875140,7.202,138.85,138.77,0.34]
[1719344875743,6.69210912,138.86,138.77,0.34]
[1719344875744,13.89370912,138.86,138.77,0.34]
[1719344879760,7.203,138.83,138.76,16.2734]
[1719344880271,7.2041,138.81,138.76,16.2734]
[1719344880448,20.94,138.85,138.76,16.2734]
[1719344880649,7.2041,138.81,138.76,16.2734]
[1719344881169,7.2036,138.82,138.76,16.2734]
[1719344882247,41.34775468,138.85,138.76,16.2734]
[1719344882448,27.2028,138.84,138.76,16.2734]
[1719344882655,7.203,138.83,138.76,16.2734]
[1719344885471,20.0,138.84,138.76,16.2734]
[1719344885657,20.16069369,138.85,138.76,16.2734]
[1719344885858,6.69210912,138.85,138.76,16.2734]
[1719344886254,7.2011,138.87,138.77,0.34]
[1719344886459,7.2011,138.87,138.78,15.1795]
[1719344887357,7.2011,138.87,138.79,0.34]
[1719344887560,12.95869369,138.89,138.8,16.023]
[1719344887876,7.1989,138.91,138.81,0.34]
[1719344888172,6.26658457,138.94,138.82,37.5752]
[1719344888477,7.1984,138.92,138.83,0.17]
[1719344889261,7.1989,138.91,138.83,0.17]
[1719344890975,6.26658457,138.94,138.84,15.529]
[1719344891178,6.26658457,138.94,138.85,0.34]
[1719344891362,20.31887232,138.96,138.86,15.529]
[1719344891557,5.67340209,138.96,138.87,0.34]
[1719344891968,7.1963,138.96,138.87,0.34]
[1719344892458,7.1959,138.97,138.87,0.34]
[1719344893153,28.40806591,139.0,138.87,0.34]
[1719344893375,12.85476591,139.0,138.89,16.0834]
[1719344893572,7.1943,139.0,138.9,0.34]
[1719344893980,7.1938,139.01,138.91,16.0834]
[1719344894173,7.1938,139.01,138.92,0.34]
[1719344894378,47.46166591,139.04,138.93,16.0834]
[1719344894379,7.1927,139.03,138.93,16.0834]
[1719344894575,12.85476591,139.04,138.93,16.0834]
[1719344894781,20.04726591,139.04,138.94,0.34]
[1719344894962,12.85476591,139.04,138.94,0.34]
[1719344895579,7.1932,139.02,138.94,0.34]
[1719344895894,7.1942,139.0,138.93,16.0834]
[1719344896063,7.1953,138.98,138.93,16.0834]
[1719344896263,17.9823,139.03,138.93,16.0834]
[1719344896264,7.1944,139.0,138.93,16.0834]
[1719344896669,17.9823,139.03,138.93,16.0834]
[1719344896984,7.1946,139.0,138.93,16.0834]
[1719344898598,7.1949,138.99,138.93,16.0834]
[1719344899102,7.1944,139.0,138.93,16.0834]
[1719344901001,20.0,139.02,138.93,16.0834]
[1719344901199,7.1959,138.97,138.93,16.0834]
[1719344901407,7.1968,138.95,138.93,16.0834]
[1719344901588,7.1968,138.95,138.86,16.4956]
[1719344902083,17.9873,138.99,138.87,1.43831783]
[1719344902398,7.1964,138.96,138.87,1.43831783]
[1719344902901,7.1964,138.96,138.88,0.17]
[1719344903587,20.0,138.98,138.9,15.6538]
[1719344903781,20.94,139.01,138.91,1.43850587]
[1719344903979,7.1951,138.99,138.91,1.43850587]
[1719344904385,7.1953,138.98,138.91,1.43850587]
[1719344904898,7.1958,138.97,138.91,1.43850587]
[1719344905973,20.0,139.0,138.91,1.43850587]
[1719344906189,20.0,139.01,138.91,1.43850587]
[1719344906394,26.26658457,139.01,138.9,17.09239879]
[1719344906596,7.1959,138.97,138.9,17.09239879]
[1719344906782,7.1954,138.98,138.9,17.09239879]
[1719344907178,7.1958,138.97,138.9,17.09239879]
[1719344907388,7.1958,138.97,138.91,1.43849522]
[1719344907899,7.1954,138.98,138.91,1.43849522]
[1719344908482,44.25128457,139.01,138.91,1.43849522]
[1719344908483,26.26658457,139.01,138.91,1.43849522]
[1719344908675,27.1938,139.01,138.92,0.34]
[1719344908876,7.44295125,139.02,138.93,15.2145]
[1719344909087,7.1934,139.02,138.94,1.77808109]
[1719344910095,13.78048134,139.04,138.94,1.77808109]
[1719344910275,7.1923,139.04,138.95,15.3577]
[1719344910471,6.26658457,139.06,138.96,1.7778741]
[1719344910676,7.1927,139.03,138.96,1.7778741]
[1719344910884,7.1922,139.04,138.96,1.7778741]
[1719344912401,7.1927,139.03,138.96,1.7778741]
[1719344912902,7.1923,139.04,138.96,1.7778741]
[1719344913278,6.26658457,139.06,138.96,1.7778741]
[1719344913279,7.1928,139.03,138.96,1.7778741]
[1719344913482,7.1932,139.02,138.96,1.7778741]
[1719344914085,6.26658457,139.06,138.95,15.3577]
[1719344914086,7.1954,138.98,138.95,15.3577]
[1719344914399,7.1942,139.0,138.95,15.3577]
[1719344915183,7.1937,139.01,138.95,15.3577]
[1719344915683,17.9807,139.04,138.95,15.3577]
[1719344915883,7.1937,139.01,138.95,15.3577]
[1719344916904,7.1963,138.96,138.88,1.43774864]
[1719344917106,7.196,138.97,138.88,1.43774864]
[1719344917282,30.0,138.95,138.88,1.43774864]
[1719344918404,30.0,138.95,138.89,0.34]
[1719344918988,30.0,138.95,138.88,1.43774864]
[1719344919184,7.1974,138.94,138.88,1.43774864]
[1719344919396,30.0,138.92,138.88,1.43774864]
[1719344922111,30.0,138.89,138.87,15.9883]
[1719344922289,30.0,138.89,138.8,15.7206]
[1719344922488,30.0,138.89,138.81,0.17]
[1719344923804,30.0,138.89,138.81,0.34]
[1719344924598,30.0,138.89,138.83,15.556]
[1719344924909,30.0,138.89,138.84,1.77816285]
[1719344925996,30.0,138.89,138.84,21.77816285]